fUSD/lending_fUSD_20240428
["ID","MTS","AMOUNT","RATE_DAILY","PERIOD"]
[324809298,1714339930314,-674.04,0.00015068,2]
[324809299,1714339930326,-177.11770342,0.00015068,2]
[324809300,1714339930335,-500.0,0.00015068,2]
[324809301,1714339930345,-500.0,0.00015068,2]
[324809302,1714339930354,-500.0,0.00015068,2]
[324809303,1714339930363,-552.07,0.00015068,2]
[324809304,1714339930373,-588.66,0.00015068,2]
[324809305,1714339930382,-500.0,0.00015068,2]
[324809306,1714339930391,-500.0,0.00015068,2]
[324809307,1714339930400,-798.42,0.00015068,2]
[324809308,1714339930409,-500.0,0.00015068,2]
[324809309,1714339930419,-928.66,0.00015068,2]
[324809310,1714339930428,-505.51,0.00015068,2]
[324809311,1714339930437,-500.0,0.00015068,2]
[324809312,1714339930448,-903.89,0.00015068,2]
[324809313,1714339930457,-737.63,0.00015068,2]
[324809314,1714339930467,-500.0,0.00015068,2]
[324809315,1714339930476,-864.97,0.00015068,2]
[324809316,1714339930486,-718.49,0.00015068,2]
[324809317,1714339930496,-504.53,0.00015068,2]
[324809318,1714339930506,-594.05,0.00015068,2]
[324809319,1714339930515,-500.0,0.00015068,2]
[324809320,1714339930525,-500.0,0.00015068,2]
[324809321,1714339930535,-500.0,0.00015068,2]
[324809322,1714339930544,-870.38,0.00015068,2]
[324809323,1714339930554,-501.18,0.00015068,2]
[324809324,1714339930563,-500.0,0.00015068,2]
[324809325,1714339930573,-500.0,0.00015068,2]
[324809326,1714339930583,-418.85308898,0.00015068,2]
[324809327,1714339930593,-566.57643997,0.00015068,2]
[324809328,1714339930602,-500.0,0.00015068,2]
[324809329,1714339930612,-610.01,0.00015068,2]
[324809330,1714339930621,-500.0,0.00015068,2]
[324809331,1714339930630,-567.57,0.00015068,2]
[324809332,1714339930639,-500.0,0.00015068,2]
[324809333,1714339930649,-1451.39,0.00015068,2]
[324809334,1714339930658,-1302.89,0.00015068,2]
[324809335,1714339930667,-500.0,0.00015068,2]
[324809336,1714339930677,-545.45,0.00015068,2]
[324809337,1714339930686,-500.0,0.00015068,2]
[324809338,1714339930695,-500.0,0.00015068,2]
[324809339,1714339930705,-500.0,0.00015068,2]
[324809340,1714339930714,-525.6,0.00015068,2]
[324809341,1714339930723,-500.0,0.00015068,2]
[324809342,1714339930733,-500.0,0.00015068,2]
[324809343,1714339930742,-585.48,0.00015068,2]
[324809344,1714339930751,-584.64,0.00015068,2]
[324809345,1714339930761,-857.33,0.00015068,2]
[324809346,1714339930770,-500.0,0.00015068,2]
[324809347,1714339930780,-704.02,0.00015068,2]
[324809348,1714339930793,-500.0,0.00015068,2]
[324809349,1714339930803,-1320.75,0.00015068,2]
[324809350,1714339930813,-507.58,0.00015068,2]
[324809351,1714339930823,-730.12,0.00015068,2]
[324809352,1714339930835,-596.65,0.00015068,2]
[324809353,1714339930844,-500.0,0.00015068,2]
[324809354,1714339930854,-369.9,0.00015068,2]
[324809355,1714339930863,-565.97,0.00015068,2]
[324809356,1714339930873,-500.0,0.00015068,2]
[324809357,1714339930883,-875.78,0.00015068,2]
[324809358,1714339930893,-647.76,0.00015068,2]
[324809359,1714339930903,-526.69,0.00015068,2]
[324809360,1714339930913,-560.54,0.00015068,2]
[324809361,1714339930922,-736.07,0.00015068,2]
[324809362,1714339930932,-500.0,0.00015068,2]
[324809363,1714339930942,-604.78,0.00015068,2]
[324809364,1714339930951,-500.0,0.00015068,2]
[324809365,1714339930961,-500.0,0.00015068,2]
[324809366,1714339930971,-500.0,0.00015068,2]
[324809367,1714339930981,-500.0,0.00015068,2]
[324809368,1714339930991,-523.54,0.00015068,2]
[324809369,1714339931001,-2956.01,0.00015068,2]
[324809370,1714339931010,-500.0,0.00015068,2]
[324809371,1714339931020,-565.94,0.00015068,2]
[324809372,1714339931033,-500.0,0.00015068,2]
[324809373,1714339931043,-500.0,0.00015068,2]
[324809374,1714339931053,-500.0,0.00015068,2]
[324809375,1714339931063,-825.93,0.00015068,2]
[324809376,1714339931073,-602.04,0.00015068,2]
[324809377,1714339931083,-651.65,0.00015068,2]
[324809378,1714339931093,-1568.74,0.00015068,2]
[324809379,1714339931102,-520.26,0.00015068,2]
[324809380,1714339931112,-500.0,0.00015068,2]
[324809381,1714339931123,-500.0,0.00015068,2]
[324809382,1714339931132,-500.0,0.00015068,2]
[324809383,1714339931141,-1140.77,0.00015068,2]
[324809384,1714339931151,-500.0,0.00015068,2]
[324809385,1714339931161,-549.86,0.00015068,2]
[324809386,1714339931170,-960.02,0.00015068,2]
[324809387,1714339931181,-1723.08,0.00015068,2]
[324809388,1714339931192,-500.0,0.00015068,2]
[324809389,1714339931202,-500.0,0.00015068,2]
[324809390,1714339931213,-555.74,0.00015068,2]
[324809391,1714339931223,-500.0,0.00015068,2]
[324809392,1714339931234,-1272.72,0.00015068,2]
[324809393,1714339931244,-500.0,0.00015068,2]
[324809394,1714339931254,-1044.49,0.00015068,2]
[324809395,1714339931264,-854.35,0.00015068,2]
[324809396,1714339931274,-500.0,0.00015068,2]
[324809397,1714339931283,-880.39,0.00015068,2]
[324809398,1714339931293,-1228.27,0.00015068,2]
[324809399,1714339931304,-500.0,0.00015068,2]
[324809400,1714339931313,-729.04,0.00015068,2]
[324809401,1714339931323,-500.0,0.00015068,2]
[324809402,1714339931332,-500.0,0.00015068,2]
[324809403,1714339931341,-530.05,0.00015068,2]
[324809404,1714339931351,-3505.37,0.00015068,2]
[324809405,1714339931361,-797.92,0.00015068,2]
[324809406,1714339931370,-529.45,0.00015068,2]
[324809407,1714339931380,-629.63,0.00015068,2]
[324809408,1714339931390,-1082.28,0.00015068,2]
[324809409,1714339931399,-500.0,0.00015068,2]
[324809410,1714339931409,-3192.23,0.00015068,2]
[324809411,1714339931419,-4836.83,0.00015068,2]
[324809412,1714339931428,-1419.08,0.00015068,2]
[324809413,1714339931438,-3170.41,0.00015068,2]
[324809414,1714339931448,-180.18597334,0.00015068,2]
[324809415,1714339931457,-1075.74,0.00015068,2]
[324809416,1714339931467,-554.07,0.00015068,2]
[324809417,1714339931476,-3460.09,0.00015068,2]
[324809418,1714339931487,-1169.99,0.00015068,2]
[324809419,1714339931496,-812.15,0.00015068,2]
[324809420,1714339931506,-9425.46,0.00015068,2]
[324809421,1714339931515,-1842.15,0.00015068,2]
[324809422,1714339931524,-500.0,0.00015068,2]
[324809423,1714339931534,-1069.53,0.00015068,2]
[324809424,1714339931543,-500.0,0.00015068,2]
[324809425,1714339931552,-500.0,0.00015068,2]
[324809426,1714339931562,-500.0,0.00015068,2]
[324809427,1714339931571,-500.0,0.00015068,2]
[324809428,1714339931581,-14272.99,0.00015068,2]
[324809429,1714339931590,-544.14,0.00015068,2]
[324809430,1714339931599,-7051.41,0.00015068,2]
[324809431,1714339931608,-500.0,0.00015068,2]
[324809432,1714339931617,-2707.78,0.00015068,2]
[324809433,1714339931627,-1038.22,0.00015068,2]
[324809434,1714339931636,-2766.64,0.00015068,2]
[324809435,1714339931645,-789.36,0.00015068,2]
[324809436,1714339931654,-987.03,0.00015068,2]
[324809437,1714339931664,-1211.54,0.00015068,2]
[324809438,1714339931673,-675.35,0.00015068,2]
[324809439,1714339931683,-1666.13,0.00015068,2]
[324809440,1714339931692,-1516.18,0.00015068,2]
[324809441,1714339931703,-1349.22,0.00015068,2]
[324809442,1714339931712,-500.0,0.00015068,2]
[324809443,1714339931722,-6591.59,0.00015068,2]
[324809444,1714339931732,-1899.29,0.00015068,2]
[324809445,1714339931741,-1988.95,0.00015068,2]
[324809446,1714339931750,-783.36,0.00015068,2]
[324809447,1714339931760,-500.0,0.00015068,2]
[324809448,1714339931769,-1261.65,0.00015068,2]
[324809449,1714339931778,-2135.06,0.00015068,2]
[324809450,1714339931790,-500.0,0.00015068,2]
[324809451,1714339931799,-500.0,0.00015068,2]
[324809452,1714339931809,-562.7,0.00015068,2]
[324809453,1714339931819,-500.0,0.00015068,2]
[324809454,1714339931828,-6232.35,0.00015068,2]
[324809455,1714339931839,-1410.0,0.00015068,2]
[324809456,1714339931848,-659.22,0.00015068,2]
[324809457,1714339931858,-1672.92,0.00015068,2]
[324809458,1714339931869,-1799.04,0.00015068,2]
[324809459,1714339931878,-500.0,0.00015068,2]
[324809460,1714339931888,-895.24,0.00015068,2]
[324809461,1714339931897,-1513.28,0.00015068,2]
[324809462,1714339931906,-6800.76,0.00015068,2]
[324809463,1714339931915,-500.0,0.00015068,2]
[324809464,1714339931924,-753.18,0.00015068,2]
[324809465,1714339931933,-500.0,0.00015068,2]
[324809466,1714339931943,-1733.37,0.00015068,2]
[324809467,1714339931953,-782.1,0.00015068,2]
[324809468,1714339931963,-1652.85,0.00015068,2]
[324809469,1714339931972,-500.0,0.00015068,2]
[324809470,1714339931982,-1590.77,0.00015068,2]
[324809471,1714339931991,-12133.37,0.00015068,2]
[324809472,1714339932000,-2025.62,0.00015068,2]
[324809473,1714339932009,-1421.85,0.00015068,2]
[324809474,1714339932019,-1135.8,0.00015068,2]
[324809475,1714339932028,-500.0,0.00015068,2]
[324809476,1714339932038,-4575.67,0.00015068,2]
[324809477,1714339932048,-500.0,0.00015068,2]
[324809478,1714339932057,-6107.04,0.00015068,2]
[324809479,1714339932066,-1396.35,0.00015068,2]
[324809480,1714339932076,-998.38,0.00015068,2]
[324809481,1714339932085,-2527.69,0.00015068,2]
[324809482,1714339932095,-2789.13,0.00015068,2]
[324809483,1714339932105,-1761.96,0.00015068,2]
[324809484,1714339932114,-1062.84,0.00015068,2]
[324809485,1714339932124,-500.0,0.00015068,2]
[324809486,1714339932134,-1977.9,0.00015068,2]
[324809487,1714339932143,-2491.39,0.00015068,2]
[324809488,1714339932153,-3361.84,0.00015068,2]
[324809489,1714339932163,-1098.32,0.00015068,2]
[324809490,1714339932172,-1081.51,0.00015068,2]
[324809491,1714339932181,-2735.15,0.00015068,2]
[324809492,1714339932190,-500.0,0.00015068,2]
[324809493,1714339932200,-1862.58,0.00015068,2]
[324809494,1714339932209,-4338.42,0.00015068,2]
[324809495,1714339932219,-1752.48,0.00015068,2]
[324809496,1714339932229,-844.65,0.00015068,2]
[324809497,1714339932238,-2116.48,0.00015068,2]
[324809498,1714339932248,-500.0,0.00015068,2]
[324809499,1714339932258,-1415.56,0.00015068,2]
[324809500,1714339932269,-552.51,0.00015068,2]
[324809501,1714339932279,-1696.77,0.00015068,2]
[324809502,1714339932289,-7394.13,0.00015068,2]
[324809503,1714339932301,-500.0,0.00015068,2]
[324809504,1714339932310,-2704.4,0.00015068,2]
[324809505,1714339932320,-500.0,0.00015068,2]
[324809506,1714339932331,-547.48,0.00015068,2]
[324809507,1714339932340,-869.1,0.00015068,2]
[324809508,1714339932349,-379.1,0.00015068,2]
[324809509,1714339932359,-3366.67,0.00015068,2]
[324809510,1714339932370,-709.72,0.00015068,2]
[324809511,1714339932380,-849.0,0.00015068,2]
[324809512,1714339932390,-4609.23,0.00015068,2]
[324809513,1714339932400,-1257.26,0.00015068,2]
[324809514,1714339932410,-500.0,0.00015068,2]
[324809515,1714339932421,-972.25,0.00015068,2]
[324809516,1714339932432,-1051.8,0.00015068,2]
[324809517,1714339932444,-1129.36,0.00015068,2]
[324809518,1714339932455,-500.0,0.00015068,2]
[324809519,1714339932464,-1721.28,0.00015068,2]
[324809520,1714339932474,-1025.92,0.00015068,2]
[324809521,1714339932483,-505.66,0.00015068,2]
[324809522,1714339932493,-500.0,0.00015068,2]
[324809523,1714339932503,-500.0,0.00015068,2]
[324809524,1714339932512,-784.13,0.00015068,2]
[324809525,1714339932522,-3106.8,0.00015068,2]
[324809526,1714339932533,-1332.25,0.00015068,2]
[324809527,1714339932542,-1770.89,0.00015068,2]
[324809528,1714339932552,-500.0,0.00015068,2]
[324809529,1714339932562,-3285.67,0.00015068,2]
[324809530,1714339932572,-500.0,0.00015068,2]
[324809531,1714339932581,-1973.0,0.00015068,2]
[324809532,1714339932591,-500.0,0.00015068,2]
[324809533,1714339932601,-581.39,0.00015068,2]
[324809534,1714339932611,-5056.57,0.00015068,2]
[324809535,1714339932620,-500.0,0.00015068,2]
[324809536,1714339932630,-528.94,0.00015068,2]
[324809537,1714339932640,-1960.25,0.00015068,2]
[324809538,1714339932650,-854.46,0.00015068,2]
[324809539,1714339932660,-500.0,0.00015068,2]
[324809540,1714339932670,-505.33,0.00015068,2]
[324809541,1714339932679,-1460.22,0.00015068,2]
[324809542,1714339932689,-500.0,0.00015068,2]
[324809543,1714339932699,-500.0,0.00015068,2]
[324809544,1714339932709,-4144.13,0.00015068,2]
[324809545,1714339932719,-2730.97,0.00015068,2]
[324809546,1714339932728,-2002.94,0.00015068,2]
[324809547,1714339932737,-1318.77,0.00015068,2]
[324809548,1714339932747,-500.0,0.00015068,2]
[324809549,1714339932758,-1001.05,0.00015068,2]
[324809550,1714339932768,-500.0,0.00015068,2]
[324809551,1714339932778,-9331.99,0.00015068,2]
[324809552,1714339932791,-4277.49,0.00015068,2]
[324809553,1714339932801,-240.86671473,0.00015068,2]
[324809554,1714339932811,-5193.46,0.00015068,2]
[324809555,1714339932821,-775.85,0.00015068,2]
[324809556,1714339932833,-500.0,0.00015068,2]
[324809557,1714339932843,-743.46,0.00015068,2]
[324809558,1714339932853,-150.0,0.00015068,2]
[324809559,1714339932865,-522.29,0.00015068,2]
[324809560,1714339932875,-150.0,0.00015068,2]
[324809561,1714339932885,-419.34,0.00015068,2]
[324809562,1714339932895,-350.62,0.00015068,2]
[324809563,1714339932905,-150.0,0.00015068,2]
[324809564,1714339932914,-150.0,0.00015068,2]
[324809565,1714339932924,-150.0,0.00015068,2]
[324809566,1714339932934,-150.0,0.00015068,2]
[324809567,1714339932944,-150.0,0.00015068,2]
[324809568,1714339932954,-162.92,0.00015068,2]
[324809569,1714339932964,-200.0,0.00015112,2]
[324809570,1714339932973,-1000.0,0.00015112,2]
[324809571,1714339932983,-500.0,0.00015342,2]
[324809572,1714339932992,-500.0,0.00015342,2]
[324809573,1714339933002,-506.83,0.00015342,2]
[324809574,1714339933012,-182.25645839,0.00015342,2]
[324809575,1714339933022,-500.0,0.00015342,2]
[324809576,1714339933032,-500.0,0.00015342,2]
[324809577,1714339933042,-500.0,0.00015342,2]
[324809578,1714339933051,-500.0,0.00015342,2]
[324809579,1714339933061,-500.0,0.00015342,2]
[324809580,1714339933071,-500.0,0.00015342,2]
[324809581,1714339933081,-366.19463418,0.00015342,2]
[324809582,1714339933090,-517.57,0.00015342,2]
[324809583,1714339933100,-586.34,0.00015342,2]
[324809584,1714339933110,-733.89,0.00015342,2]
[324809585,1714339933120,-674.04,0.00015342,2]
[324809586,1714339933130,-607.64518986,0.00015342,2]
[324809587,1714339933139,-500.0,0.00015342,2]
[324809588,1714339933149,-500.0,0.00015342,2]
[324809589,1714339933159,-552.07,0.00015342,2]
[324809590,1714339933168,-588.66,0.00015342,2]
[324809591,1714339933178,-500.0,0.00015342,2]
[324809592,1714339933188,-500.0,0.00015342,2]
[324809593,1714339933198,-798.42,0.00015342,2]
[324809594,1714339933209,-500.0,0.00015342,2]
[324809595,1714339933219,-928.66,0.00015342,2]
[324809596,1714339933229,-505.51,0.00015342,2]
[324809597,1714339933238,-500.0,0.00015342,2]
[324809598,1714339933248,-903.89,0.00015342,2]
[324809599,1714339933258,-737.63,0.00015342,2]
[324809600,1714339933268,-500.0,0.00015342,2]
[324809601,1714339933277,-864.97,0.00015342,2]
[324809602,1714339933287,-718.49,0.00015342,2]
[324809603,1714339933296,-504.53,0.00015342,2]
[324809604,1714339933306,-594.05,0.00015342,2]
[324809605,1714339933315,-500.0,0.00015342,2]
[324809606,1714339933325,-500.0,0.00015342,2]
[324809607,1714339933335,-500.0,0.00015342,2]
[324809608,1714339933344,-870.38,0.00015342,2]
[324809609,1714339933354,-501.18,0.00015342,2]
[324809610,1714339933363,-500.0,0.00015342,2]
[324809611,1714339933374,-255.76,0.00015342,2]
[324809612,1714339933383,-500.0,0.00015342,2]
[324809613,1714339933393,-610.01,0.00015342,2]
[324809614,1714339933402,-225.07,0.00015342,2]
[324809615,1714339933412,-567.57,0.00015342,2]
[324809616,1714339933422,-1451.39,0.00015342,2]
[324809617,1714339933431,-1302.89,0.00015342,2]
[324809618,1714339933441,-500.0,0.00015342,2]
[324809619,1714339933451,-545.45,0.00015342,2]
[324809620,1714339933460,-500.0,0.00015342,2]
[324809621,1714339933470,-500.0,0.00015342,2]
[324809622,1714339933479,-500.0,0.00015342,2]
[324809623,1714339933488,-525.6,0.00015342,2]
[324809624,1714339933498,-500.0,0.00015342,2]
[324809625,1714339933507,-500.0,0.00015342,2]
[324809626,1714339933517,-585.48,0.00015342,2]
[324809627,1714339933527,-584.64,0.00015342,2]
[324809628,1714339933536,-857.33,0.00015342,2]
[324809629,1714339933546,-500.0,0.00015342,2]
[324809630,1714339933555,-704.02,0.00015342,2]
[324809631,1714339933565,-500.0,0.00015342,2]
[324809632,1714339933575,-1320.75,0.00015342,2]
[324809633,1714339933764,-507.58,0.00015342,2]
[324809634,1714339933774,-730.12,0.00015342,2]
[324809635,1714339933786,-596.65,0.00015342,2]
[324809636,1714339933797,-500.0,0.00015342,2]
[324809637,1714339933807,-369.9,0.00015342,2]
[324809638,1714339933816,-565.97,0.00015342,2]
[324809639,1714339933825,-500.0,0.00015342,2]
[324809640,1714339933835,-875.78,0.00015342,2]
[324809641,1714339933845,-526.69,0.00015342,2]
[324809642,1714339933855,-560.54,0.00015342,2]
[324809643,1714339933868,-736.07,0.00015342,2]
[324809644,1714339933877,-500.0,0.00015342,2]
[324809645,1714339933886,-604.78,0.00015342,2]
[324809646,1714339933896,-500.0,0.00015342,2]
[324809647,1714339933906,-500.0,0.00015342,2]
[324809648,1714339933916,-500.0,0.00015342,2]
[324809649,1714339933925,-500.0,0.00015342,2]
[324809650,1714339933935,-523.54,0.00015342,2]
[324809651,1714339933945,-2956.01,0.00015342,2]
[324809652,1714339933955,-500.0,0.00015342,2]
[324809653,1714339933965,-565.94,0.00015342,2]
[324809654,1714339933974,-500.0,0.00015342,2]
[324809655,1714339933984,-500.0,0.00015342,2]
[324809656,1714339933994,-500.0,0.00015342,2]
[324809657,1714339934004,-825.93,0.00015342,2]
[324809658,1714339934014,-602.04,0.00015342,2]
[324809659,1714339934023,-651.65,0.00015342,2]
[324809660,1714339934033,-1568.74,0.00015342,2]
[324809661,1714339934042,-520.26,0.00015342,2]
[324809662,1714339934052,-500.0,0.00015342,2]
[324809663,1714339934061,-500.0,0.00015342,2]
[324809664,1714339934071,-500.0,0.00015342,2]
[324809665,1714339934080,-1140.77,0.00015342,2]
[324809666,1714339934090,-500.0,0.00015342,2]
[324809667,1714339934099,-549.86,0.00015342,2]
[324809668,1714339934109,-960.02,0.00015342,2]
[324809669,1714339934119,-500.0,0.00015342,2]
[324809670,1714339934128,-1723.08,0.00015342,2]
[324809671,1714339934137,-500.0,0.00015342,2]
[324809672,1714339934147,-555.74,0.00015342,2]
[324809673,1714339934156,-500.0,0.00015342,2]
[324809674,1714339934166,-1272.72,0.00015342,2]
[324809675,1714339934176,-500.0,0.00015342,2]
[324809676,1714339934186,-1044.49,0.00015342,2]
[324809677,1714339934195,-854.35,0.00015342,2]
[324809678,1714339934206,-500.0,0.00015342,2]
[324809679,1714339934216,-880.39,0.00015342,2]
[324809680,1714339934227,-1228.27,0.00015342,2]
[324809681,1714339934237,-500.0,0.00015342,2]
[324809682,1714339934246,-729.04,0.00015342,2]
[324809683,1714339934256,-416.0461679,0.00015342,2]
[324809684,1714339934265,-500.0,0.00015342,2]
[324809685,1714339934275,-530.05,0.00015342,2]
[324809686,1714339934285,-3505.37,0.00015342,2]
[324809687,1714339934295,-797.92,0.00015342,2]
[324809688,1714339934305,-529.45,0.00015342,2]
[324809689,1714339934314,-629.63,0.00015342,2]
[324809690,1714339934324,-1082.28,0.00015342,2]
[324809691,1714339934334,-500.0,0.00015342,2]
[324809692,1714339934344,-3192.23,0.00015342,2]
[324809693,1714339934354,-4836.83,0.00015342,2]
[324809694,1714339934364,-1419.08,0.00015342,2]
[324809695,1714339934375,-3170.41,0.00015342,2]
[324809696,1714339934384,-1075.74,0.00015342,2]
[324809697,1714339934394,-554.07,0.00015342,2]
[324809698,1714339934404,-3460.09,0.00015342,2]
[324809699,1714339934413,-1169.99,0.00015342,2]
[324809700,1714339934423,-812.15,0.00015342,2]
[324809701,1714339934432,-9425.46,0.00015342,2]
[324809702,1714339934442,-1842.15,0.00015342,2]
[324809703,1714339934451,-500.0,0.00015342,2]
[324809704,1714339934460,-1069.53,0.00015342,2]
[324809705,1714339934470,-500.0,0.00015342,2]
[324809706,1714339934479,-500.0,0.00015342,2]
[324809707,1714339934489,-335.46,0.00015342,2]
[324809708,1714339934498,-500.0,0.00015342,2]
[324809709,1714339934508,-14272.99,0.00015342,2]
[324809710,1714339934518,-544.14,0.00015342,2]
[324809711,1714339934527,-7051.41,0.00015342,2]
[324809712,1714339934536,-500.0,0.00015342,2]
[324809713,1714339934545,-2707.78,0.00015342,2]
[324809714,1714339934555,-1038.22,0.00015342,2]
[324809715,1714339934564,-789.36,0.00015342,2]
[324809716,1714339934574,-2766.64,0.00015342,2]
[324809717,1714339934583,-987.03,0.00015342,2]
[324809718,1714339934593,-1211.54,0.00015342,2]
[324809719,1714339934603,-675.35,0.00015342,2]
[324809720,1714339934612,-1666.13,0.00015342,2]
[324809721,1714339934622,-1516.18,0.00015342,2]
[324809722,1714339934632,-1349.22,0.00015342,2]
[324809723,1714339934642,-500.0,0.00015342,2]
[324809724,1714339934652,-6591.59,0.00015342,2]
[324809725,1714339934662,-1899.29,0.00015342,2]
[324809726,1714339934672,-1988.95,0.00015342,2]
[324809727,1714339934681,-783.36,0.00015342,2]
[324809728,1714339934690,-579.0,0.00015342,2]
[324809729,1714339934700,-1261.65,0.00015342,2]
[324809730,1714339934710,-2135.06,0.00015342,2]
[324809731,1714339934719,-500.0,0.00015342,2]
[324809732,1714339934728,-500.0,0.00015342,2]
[324809733,1714339934738,-562.7,0.00015342,2]
[324809734,1714339934747,-500.0,0.00015342,2]
[324809735,1714339934756,-6232.35,0.00015342,2]
[324809736,1714339934766,-1410.0,0.00015342,2]
[324809737,1714339934776,-659.22,0.00015342,2]
[324809738,1714339934792,-1672.92,0.00015342,2]
[324809739,1714339934802,-1799.04,0.00015342,2]
[324809740,1714339934811,-500.0,0.00015342,2]
[324809741,1714339934821,-895.24,0.00015342,2]
[324809742,1714339934832,-1513.28,0.00015342,2]
[324809743,1714339934842,-6800.76,0.00015342,2]
[324809744,1714339934851,-500.0,0.00015342,2]
[324809745,1714339934860,-753.18,0.00015342,2]
[324809746,1714339934869,-500.0,0.00015342,2]
[324809747,1714339934881,-1733.37,0.00015342,2]
[324809748,1714339934891,-782.1,0.00015342,2]
[324809749,1714339934901,-1652.85,0.00015342,2]
[324809750,1714339934910,-500.0,0.00015342,2]
[324809751,1714339934920,-1590.77,0.00015342,2]
[324809752,1714339934929,-12133.37,0.00015342,2]
[324809753,1714339934938,-2025.62,0.00015342,2]
[324809754,1714339934947,-1421.85,0.00015342,2]
[324809755,1714339934957,-1135.8,0.00015342,2]
[324809756,1714339934966,-500.0,0.00015342,2]
[324809757,1714339934976,-4575.67,0.00015342,2]
[324809758,1714339934985,-500.0,0.00015342,2]
[324809759,1714339934995,-6107.04,0.00015342,2]
[324809760,1714339935005,-1396.35,0.00015342,2]
[324809761,1714339935014,-998.38,0.00015342,2]
[324809762,1714339935024,-2527.69,0.00015342,2]
[324809763,1714339935034,-2789.13,0.00015342,2]
[324809764,1714339935044,-1761.96,0.00015342,2]
[324809765,1714339935053,-1062.84,0.00015342,2]
[324809766,1714339935063,-500.0,0.00015342,2]
[324809767,1714339935072,-1977.9,0.00015342,2]
[324809768,1714339935082,-2491.39,0.00015342,2]
[324809769,1714339935092,-3361.84,0.00015342,2]
[324809770,1714339935102,-1098.32,0.00015342,2]
[324809771,1714339935112,-1081.51,0.00015342,2]
[324809772,1714339935121,-2735.15,0.00015342,2]
[324809773,1714339935132,-500.0,0.00015342,2]
[324809774,1714339935141,-1862.58,0.00015342,2]
[324809775,1714339935151,-4338.42,0.00015342,2]
[324809776,1714339935161,-1752.48,0.00015342,2]
[324809777,1714339935171,-844.65,0.00015342,2]
[324809778,1714339935179,-2116.48,0.00015342,2]
[324809779,1714339935189,-500.0,0.00015342,2]
[324809780,1714339935198,-1415.56,0.00015342,2]
[324809781,1714339935207,-552.51,0.00015342,2]
[324809782,1714339935217,-1696.77,0.00015342,2]
[324809783,1714339935227,-7394.13,0.00015342,2]
[324809784,1714339935236,-500.0,0.00015342,2]
[324809785,1714339935246,-2704.4,0.00015342,2]
[324809786,1714339935256,-283.8,0.00015342,2]
[324809787,1714339935266,-547.48,0.00015342,2]
[324809788,1714339935275,-869.1,0.00015342,2]
[324809789,1714339935285,-3366.67,0.00015342,2]
[324809790,1714339935294,-709.72,0.00015342,2]
[324809791,1714339935304,-849.0,0.00015342,2]
[324809792,1714339935313,-4609.23,0.00015342,2]
[324809793,1714339935324,-1257.26,0.00015342,2]
[324809794,1714339935336,-500.0,0.00015342,2]
[324809795,1714339935346,-972.25,0.00015342,2]
[324809796,1714339935357,-1051.8,0.00015342,2]
[324809797,1714339935366,-1129.36,0.00015342,2]